bitfinex-derivatives/quotes_SOLF0:USTF0_20241222
["timestamp","ask_amount","ask_price","bid_price","bid_amount"]
[1734900117353,2.7893,179.46,179.43,2.7898]
[1734900117554,1.7427,179.51,179.39,1.7101]
[1734900117754,2.7899,179.42,179.38,1.6447]
[1734900118158,3.36,179.48,179.39,2.7902]
[1734900118357,2.7897,179.44,179.38,1.6447]
[1734900118854,2.7897,179.44,179.41,2.79]
[1734900119161,3.36,179.48,179.38,1.6447]
[1734900119560,2.7894,179.46,179.41,2.7901]
[1734900119961,3.36,179.48,179.41,2.7901]
[1734900120855,2.7895,179.45,179.41,2.7901]
[1734900122051,2.7895,179.45,179.42,2.7899]
[1734900122354,1.7427,179.51,179.38,1.6447]
[1734900122560,1.7427,179.51,179.4,34.93271675]
[1734900122759,1.7427,179.51,179.46,2.7891]
[1734900123259,2.7887,179.5,179.46,2.7891]
[1734900123861,1.7427,179.51,179.46,2.7891]
[1734900124058,2.7888,179.49,179.46,2.7891]
[1734900124655,2.7888,179.49,179.41,3.36]
[1734900124656,2.7887,179.5,179.44,2.7896]
[1734900124850,1.7427,179.51,179.41,3.36]
[1734900125064,1.7427,179.51,179.43,34.93271675]
[1734900125255,2.7883,179.53,179.43,34.93271675]
[1734900125559,12.03992622,179.57,179.46,34.93271675]
[1734900125760,0.90183222,179.56,179.46,38.27271675]
[1734900126160,2.7882,179.54,179.49,2.7887]
[1734900127762,2.7882,179.54,179.5,2.7886]
[1734900127959,2.7882,179.54,179.46,38.27271675]
[1734900128264,1.5944,179.57,179.49,34.93271675]
[1734900128663,1.5944,179.57,179.47,1.6212]
[1734900128966,1.5944,179.57,179.52,2.7882]
[1734900129357,1.5944,179.57,179.47,1.6212]
[1734900129664,1.5944,179.57,179.47,3.2735]
[1734900130164,1.5944,179.57,179.53,2.7881]
[1734900130367,16.36881741,179.61,179.49,34.93271675]
[1734900130368,22.62412133,179.61,179.49,34.93271675]
[1734900130565,13.84980532,179.61,179.49,34.93271675]
[1734900130763,1.768,179.61,179.49,34.93271675]
[1734900131165,3.4828,179.61,179.49,34.93271675]
[1734900131365,35.83435686,179.6,179.47,1.6212]
[1734900131566,13.86627488,179.59,179.47,1.6212]
[1734900131763,4.24164011,179.58,179.47,1.6212]
[1734900131969,0.90164011,179.57,179.47,4.4103]
[1734900132268,35.83435686,179.57,179.47,4.4103]
[1734900132466,2.7885,179.52,179.47,4.4103]
[1734900132872,2.7885,179.52,179.48,2.7889]
[1734900133262,35.83481386,179.51,179.34,92.07789423]
[1734900133466,34.93271675,179.47,179.34,92.07789423]
[1734900133764,2.7902,179.41,179.34,92.07789423]
[1734900133971,39.90681675,179.4,179.34,92.07789423]
[1734900134269,39.90681675,179.4,179.3,1.61]
[1734900134469,2.7907,179.37,179.31,2.7916]
[1734900134768,2.7907,179.37,179.3,1.61]
[1734900134958,36.56681675,179.4,179.3,1.61]
[1734900135160,3.34,179.39,179.3,1.61]
[1734900135567,3.34,179.4,179.37,2.7907]
[1734900135770,3.34,179.4,179.3,1.61]
[1734900137071,3.34,179.4,179.36,2.7907]
[1734900137270,3.34,179.4,179.3,4.95]
[1734900137773,3.34,179.4,179.37,2.7906]
[1734900140276,3.34,179.4,179.36,2.7908]
[1734900141070,3.34,179.4,179.37,2.7907]
[1734900142073,3.34,179.4,179.35,2.7909]
[1734900143578,6.1303,179.4,179.35,2.7909]
[1734900144076,3.34,179.4,179.33,2.7912]
[1734900144277,3.34,179.4,179.31,1.6292]
[1734900145175,3.34,179.4,179.36,2.7908]
[1734900145978,3.34,179.4,179.35,2.791]
[1734900146487,2.7906,179.38,179.34,2.7911]
[1734900146681,2.7906,179.38,179.31,1.6292]
[1734900147078,3.34,179.37,179.31,1.6292]
[1734900147282,3.2915,179.42,179.31,1.6292]
[1734900147482,3.34,179.38,179.31,1.6292]
[1734900148185,3.2915,179.42,179.31,1.6292]
[1734900148484,3.34,179.41,179.31,1.6292]
[1734900148676,3.2915,179.42,179.39,2.7902]
[1734900148897,1.6121,179.42,179.31,1.6292]
[1734900149083,34.93271675,179.46,179.33,34.93271675]
[1734900149279,3.34,179.45,179.41,2.7901]
[1734900150382,41.07301675,179.49,179.44,2.7896]
[1734900150589,1.7484,179.49,179.4,3.34]
[1734900150887,1.7484,179.49,179.41,5.0441]
[1734900151587,1.7484,179.49,179.47,2.789]
[1734900157589,1.7484,179.49,179.48,2.789]
[1734900158289,12.98923136,179.54,179.41,5.0441]
[1734900158486,1.6047,179.58,179.43,21.4897177]
[1734900158687,0.90193836,179.57,179.43,21.4897177]
[1734900158993,7.7322,179.58,179.47,2.7891]
[1734900159188,22.39153862,179.57,179.46,3.34]
[1734900159383,0.90182092,179.56,179.42,5.0716]
[1734900159587,2.7882,179.53,179.42,5.0716]
[1734900161082,12.98923136,179.54,179.42,39.99172919]
[1734900161282,1.6047,179.58,179.45,34.92012919]
[1734900161685,1.6047,179.58,179.57,2.7876]
[1734900164486,6.1268,179.62,179.51,34.92012919]
[1734900164690,0.90155532,179.61,179.51,34.92012919]
[1734900165394,0.90155532,179.61,179.59,2.7873]
[1734900165687,0.90155532,179.61,179.51,34.92012919]
[1734900166394,3.2709,179.63,179.51,34.92012919]
[1734900166589,0.90154378,179.62,179.54,2.788]
[1734900166796,0.90154378,179.62,179.51,34.92012919]
[1734900166992,3.2709,179.63,179.51,34.92012919]
[1734900167792,3.2709,179.63,179.5,1.7678]
[1734900167793,1.6618,179.63,179.54,34.92012919]
[1734900168095,3.34,179.67,179.55,3.34]
[1734900168296,0.9014253,179.66,179.55,3.34]
[1734900168498,0.9014253,179.66,179.64,2.7864]
[1734900168795,0.9014095,179.65,179.64,2.7864]
[1734900168992,0.9014095,179.66,179.63,2.7866]
[1734900169194,0.9014095,179.65,179.63,2.7866]
[1734900169395,3.34,179.67,179.63,2.7866]
[1734900169594,0.90140013,179.66,179.64,2.7865]
[1734900169896,3.68770013,179.66,179.57,34.92012919]
[1734900170095,0.90140013,179.65,179.57,34.92012919]
[1734900170296,3.68790013,179.65,179.56,3.34]
[1734900170488,0.90140013,179.64,179.56,3.34]
[1734900170689,1.6664,179.68,179.63,2.7866]
[1734900170893,0.90135152,179.67,179.57,34.92012919]
[1734900171196,0.90135152,179.67,179.57,36.51422919]
[1734900171392,61.95507387,179.8,179.64,69.84025838]
[1734900171697,36.64102919,179.78,179.65,1.5941]
[1734900171892,2.7851,179.73,179.68,2.7857]
[1734900172091,2.7851,179.73,179.65,4.9341]
[1734900172493,2.7849,179.75,179.71,2.7854]
[1734900173192,3.34,179.77,179.71,2.7854]
[1734900173495,2.7847,179.76,179.71,2.7854]
[1734900173687,3.34,179.77,179.65,4.9341]
[1734900173888,3.34,179.77,179.69,2.7856]
[1734900175093,3.34,179.77,179.68,2.7859]
[1734900175289,3.34,179.71,179.61,34.92012919]
[1734900175493,2.786,179.68,179.6,1.7369]
[1734900175698,2.786,179.68,179.64,2.7864]
[1734900176397,3.4894,179.7,179.64,2.7864]
[1734900177001,2.786,179.68,179.64,2.7864]
[1734900178393,38.40952919,179.7,179.6,1.7369]
[1734900178600,34.92012919,179.7,179.6,1.7369]
[1734900178799,3.34,179.71,179.6,1.7369]
[1734900178996,5.0641,179.71,179.6,1.7369]
[1734900179403,2.7856,179.7,179.65,2.7862]
[1734900179702,3.34,179.69,179.6,1.7369]
[1734900179908,6.1258,179.69,179.65,2.7862]
[1734900180200,3.34,179.69,179.6,1.7369]
[1734900181503,2.7862,179.67,179.63,2.7866]
[1734900182004,3.34,179.69,179.6,1.7369]
[1734900182199,3.34,179.69,179.55,1.6054]
[1734900182401,3.34,179.69,179.52,34.92012919]
[1734900182402,34.92012919,179.67,179.54,3.34]
[1734900182600,0.90131302,179.66,179.57,2.7875]
[1734900182802,34.92012919,179.67,179.54,3.34]
[1734900183196,3.34,179.69,179.55,34.92012919]
[1734900183702,2.7861,179.67,179.55,34.92012919]
[1734900184102,2.7861,179.67,179.63,2.7866]
[1734900184804,3.34,179.69,179.61,2.7868]
[1734900184993,3.34,179.69,179.59,3.34]
[1734900185198,2.7865,179.65,179.59,3.34]
[1734900185406,2.7865,179.65,179.6,2.787]
[1734900185702,2.7865,179.65,179.59,3.34]
[1734900187399,2.7865,179.65,179.61,2.7869]
[1734900190703,2.7862,179.66,179.62,2.7868]
[1734900191105,3.34,179.69,179.59,3.34]
[1734900191403,2.7861,179.67,179.63,2.7866]
[1734900191602,3.34,179.69,179.55,34.92012919]
[1734900191805,34.92012919,179.67,179.52,1.6381]
[1734900192106,21.46729921,179.64,179.52,1.6381]
[1734900192302,5.0464,179.63,179.52,1.6381]
[1734900192606,1.7064,179.63,179.52,1.6381]
[1734900193109,4.4931,179.63,179.52,1.6381]
[1734900193609,1.7064,179.63,179.52,1.6381]
[1734900194008,1.7064,179.63,179.59,2.7872]
[1734900194314,34.87405594,179.67,179.55,3.34]
[1734900194508,3.34,179.67,179.55,3.34]
[1734900194704,2.7862,179.66,179.55,3.34]
[1734900196820,2.7862,179.66,179.62,2.7867]
[1734900197009,2.786,179.67,179.57,34.87405594]
[1734900197213,5.0708,179.71,179.57,34.87405594]
[1734900197618,2.7859,179.68,179.64,2.7864]
[1734900200418,2.7859,179.68,179.65,2.7863]
[1734900201018,6.1257,179.7,179.66,2.7861]
[1734900201621,2.7858,179.69,179.65,2.7863]
[1734900202017,2.7858,179.69,179.6,3.34]
[1734900202623,3.34,179.7,179.6,3.34]
[1734900203120,3.34,179.7,179.65,2.7862]
[1734900203324,2.7859,179.68,179.65,2.7862]
[1734900203521,3.34,179.7,179.66,2.7862]
[1734900203820,2.7858,179.69,179.66,2.7862]
[1734900206922,2.7858,179.69,179.65,2.7863]
[1734900207425,2.7859,179.68,179.65,2.7863]
[1734900207934,3.34,179.7,179.65,2.7863]
[1734900208124,2.7857,179.69,179.65,2.7862]
[1734900209216,4.18089353,179.71,179.6,1.5971]
[1734900209417,4.18089353,179.71,179.6,36.47115594]
[1734900209621,3.34,179.73,179.6,36.75415594]
[1734900209819,6.1252,179.73,179.69,2.7857]
[1734900210326,2.7849,179.75,179.71,2.7854]
[1734900210526,0.90089303,179.74,179.64,3.34]
[1734900211227,2.7849,179.75,179.64,3.34]
[1734900211428,2.7849,179.75,179.7,2.7854]
[1734900211629,2.7849,179.75,179.64,3.34]
[1734900212526,23.46313401,179.76,179.64,3.34]
[1734900212725,4.18012593,179.77,179.65,1.6283]
[1734900212927,30.39750401,179.78,179.69,2.7856]
[1734900213122,12.99289283,179.77,179.66,34.87405594]
[1734900213328,1.90697,179.78,179.67,1.7375]
[1734900213623,9.1090369,179.78,179.71,2.7853]
[1734900213827,0.29627,179.78,179.7,3.32]
[1734900214224,0.29627,179.78,179.72,2.7852]
[1734900214429,0.29627,179.78,179.7,3.32]
[1734900215528,0.29627,179.78,179.76,2.7846]
[1734900216232,0.29627,179.78,179.75,2.7847]
[1734900216923,3.08057,179.78,179.69,3.32]
[1734900217127,0.29627,179.78,179.69,3.32]
[1734900217930,0.29627,179.78,179.75,2.7847]
[1734900218130,0.29627,179.78,179.69,3.32]
[1734900218632,0.29627,179.78,179.75,2.7847]
[1734900219136,0.29627,179.78,179.77,2.7845]
[1734900223942,8.8127669,179.84,179.75,3.32]
[1734900224148,26.89645308,179.9,179.76,21.42016658]
[1734900224349,5.94527021,179.89,179.76,23.17296658]
[1734900224549,0.90017021,179.88,179.76,23.17296658]
[1734900224754,3.68307021,179.88,179.83,2.7834]
[1734900225049,0.90017021,179.87,179.76,23.17296658]
[1734900225244,2.7829,179.88,179.76,23.17296658]
[1734900225452,2.7829,179.88,179.76,23.45316658]
[1734900226042,0.90009559,179.87,179.76,23.45316658]
[1734900226247,1.7251,179.89,179.79,21.42016658]
[1734900226447,1.7251,179.89,179.8,3.32]
[1734900226849,3.32,179.92,179.82,21.42016658]
[1734900227251,12.10469129,179.96,179.82,21.42016658]
[1734900227452,7.00149392,179.95,179.9,2.7823]
[1734900227651,0.89979392,179.94,179.9,2.7823]
[1734900228148,2.7823,179.92,179.87,2.7828]
[1734900228655,0.89991387,179.91,179.87,2.7828]
[1734900228845,19.59117932,179.96,179.8,3.32]
[1734900229053,0.89993302,179.95,179.85,2.7831]
[1734900229249,0.89994058,179.94,179.85,2.7831]
[1734900229449,2.7824,179.91,179.87,2.7828]
[1734900230144,2.7822,179.92,179.89,2.7826]
[1734900230451,15.41540122,179.96,179.89,2.7826]
[1734900230652,15.41540122,179.96,179.82,21.42016658]
[1734900230653,0.89986622,179.95,179.82,21.42016658]
[1734900230852,2.7823,179.91,179.82,21.42016658]
[1734900231151,15.41540122,179.96,179.82,21.42016658]
[1734900231351,2.7826,179.9,179.82,21.42016658]
[1734900232153,2.7826,179.9,179.8,3.32]
[1734900232154,3.32,179.9,179.8,3.32]
[1734900232348,0.9000417,179.89,179.8,3.32]
[1734900232552,3.32,179.9,179.83,2.7835]
[1734900232850,2.7831,179.87,179.83,2.7835]
[1734900233246,1.7077,179.88,179.79,21.42016658]
[1734900233454,1.7077,179.88,179.85,2.7832]
[1734900234747,1.7077,179.88,179.79,21.42016658]
[1734900234955,4.4905,179.88,179.84,2.7833]
[1734900235746,23.12786658,179.88,179.77,1.7366]
[1734900236051,2.58732482,179.87,179.77,1.7366]
[1734900236246,1.6872,179.87,179.77,1.7366]
[1734900236863,1.7077,179.88,179.78,3.32]
[1734900238355,2.7832,179.86,179.82,2.7837]
[1734900238853,1.7077,179.88,179.82,2.7837]
[1734900239053,2.7833,179.85,179.81,2.7838]
[1734900239253,1.7077,179.88,179.81,2.7838]
[1734900239658,2.7833,179.85,179.81,2.7838]
[1734900240652,1.7077,179.88,179.79,2.784]
[1734900240853,2.57919313,179.87,179.79,2.784]
[1734900241050,1.679,179.87,179.79,2.784]
[1734900241252,2.7838,179.82,179.78,2.7843]
[1734900242049,2.7836,179.83,179.77,1.7366]
[1734900242246,4.999,179.87,179.77,1.7366]
[1734900242649,2.7834,179.84,179.77,1.7366]
[1734900243052,2.7834,179.84,179.79,2.7842]
[1734900243251,2.7834,179.84,179.77,1.7366]
[1734900243553,4.999,179.87,179.82,2.7837]
[1734900243755,3.32,179.87,179.82,2.7837]
[1734900243955,3.32,179.87,179.77,1.7366]
[1734900244155,2.7831,179.86,179.83,2.7835]
[1734900244848,1.6127,179.94,179.79,24.74016658]
[1734900245047,3.32,179.91,179.79,24.74016658]
[1734900245948,2.7827,179.89,179.82,2.7836]
[1734900246150,3.32,179.91,179.79,24.74016658]
[1734900246358,0.9,179.9,179.79,3.32]
[1734900247158,0.9,179.9,179.82,2.7837]
[1734900247356,0.9,179.9,179.79,3.32]
[1734900247569,2.7828,179.88,179.84,2.7833]
[1734900248659,2.783,179.87,179.84,2.7833]
[1734900249462,2.7826,179.89,179.85,2.7831]
[1734900249657,3.32,179.92,179.85,2.7831]
[1734900249865,0.89997158,179.91,179.85,2.7831]
[1734900250163,2.7826,179.9,179.85,2.7831]
[1734900250364,3.32,179.92,179.85,2.7831]
[1734900250581,0.89999055,179.91,179.85,2.7831]
[1734900250960,2.7828,179.88,179.85,2.7831]
[1734900251160,7.4964851,179.92,179.84,2.7833]
[1734900251463,0.90001013,179.91,179.84,2.7833]
[1734900251769,2.7829,179.88,179.84,2.7833]
[1734900251957,7.4964851,179.92,179.84,2.7833]
[1734900252157,0.90000876,179.91,179.84,2.7833]
[1734900252358,7.4964851,179.92,179.84,2.7833]
[1734900252567,0.90000652,179.91,179.84,2.7833]
[1734900252966,7.4964851,179.92,179.84,2.7833]
[1734900253266,0.90003029,179.91,179.84,2.7833]
[1734900253667,2.7829,179.88,179.84,2.7833]
[1734900253968,7.4964851,179.92,179.8,3.32]
[1734900254168,0.90005144,179.91,179.8,3.32]
[1734900254669,2.7831,179.86,179.83,2.7835]
[1734900254857,2.7831,179.86,179.8,3.32]
[1734900255768,2.7831,179.86,179.79,2.7841]
[1734900255957,2.7831,179.86,179.78,3.32]
[1734900256157,2.7834,179.84,179.78,3.32]
[1734900257559,2.7834,179.84,179.81,2.7838]
[1734900257967,2.7833,179.85,179.81,2.7838]
[1734900262466,3.32,179.87,179.81,2.7838]
[1734900262669,15.00696454,179.86,179.74,1.6155]
[1734900262862,0.9002882,179.85,179.72,36.93207639]
[1734900263068,2.784,179.81,179.72,36.93207639]
[1734900263364,3.32,179.82,179.76,2.7845]
[1734900264171,2.7841,179.8,179.76,2.7845]
[1734900264469,3.32,179.82,179.76,2.7845]
[1734900264968,2.7841,179.8,179.76,2.7845]
[1734900265161,4.1764851,179.83,179.78,2.7842]
[1734900265369,23.32265354,179.84,179.72,1.7061]
[1734900265572,12.91426337,179.85,179.75,21.41868115]
[1734900265774,9.4069,179.86,179.81,2.7837]
[1734900266369,6.6238,179.86,179.76,3.32]
[1734900266576,4.9474,179.86,179.83,2.7834]
[1734900266971,4.9474,179.86,179.76,4.996]
[1734900267170,26.64265354,179.91,179.76,4.996]
[1734900267371,0.90000272,179.9,179.76,4.996]
[1734900267576,2.7827,179.89,179.84,2.7833]
[1734900267778,0.90000272,179.88,179.76,4.996]
[1734900268478,2.7827,179.89,179.79,2.784]
[1734900268673,2.7827,179.89,179.76,4.996]
[1734900269968,4.1764851,179.9,179.75,21.41868115]
[1734900270173,2.7828,179.88,179.76,3.32]
[1734900271776,4.1764851,179.9,179.76,3.32]
[1734900271976,0.90008111,179.89,179.76,3.32]
[1734900272173,2.7834,179.85,179.76,3.32]
[1734900272780,2.7834,179.85,179.8,2.7839]
[1734900272981,3.32,179.86,179.72,21.41868115]
[1734900273173,3.32,179.86,179.77,2.7844]
[1734900273174,0.90020903,179.85,179.77,2.7844]
[1734900273372,24.22286257,179.85,179.72,3.32]
[1734900273577,23.32265354,179.85,179.72,3.32]
[1734900273886,2.7838,179.82,179.75,2.7847]
[1734900274077,23.32265354,179.85,179.72,3.32]
[1734900274288,0.90031847,179.84,179.72,3.32]
[1734900274579,2.7839,179.81,179.77,2.7844]
[1734900276180,2.7839,179.81,179.7,24.71868115]
[1734900276499,2.7839,179.81,179.78,2.7843]
[1734900276682,2.7838,179.82,179.78,2.7843]
[1734900278283,2.7838,179.82,179.79,2.7842]
[1734900278782,3.3,179.81,179.79,2.7842]
[1734900279181,3.3,179.81,179.7,21.41868115]
[1734900280877,3.3,179.81,179.8,2.784]
[1734900281281,8.73777827,179.84,179.73,21.41868115]
[1734900281485,3.3,179.86,179.83,2.7835]
[1734900282286,3.3,179.86,179.74,3.3]
[1734900282287,3.3,179.86,179.84,2.7834]
[1734900282789,3.3,179.86,179.84,2.7833]
[1734900282988,4.17696486,179.88,179.74,3.3]
[1734900283283,4.20010763,179.87,179.74,3.3]
[1734900283486,3.3,179.87,179.74,3.3]
[1734900283687,2.7831,179.86,179.77,2.7843]
[1734900283992,2.7831,179.86,179.74,3.3]
[1734900284589,2.7831,179.86,179.82,2.7836]
[1734900285984,2.7834,179.85,179.82,2.7836]
[1734900286188,3.3,179.87,179.74,3.3]
[1734900286388,0.90022228,179.86,179.74,3.3]
[1734900286688,6.0828,179.88,179.76,21.41868115]
[1734900286882,10.25976486,179.88,179.76,21.41868115]
[1734900287081,10.25976486,179.88,179.84,2.7833]
[1734900288890,2.7829,179.87,179.84,2.7833]
[1734900290490,10.25976486,179.88,179.85,2.7832]
[1734900290893,7.47696486,179.88,179.76,21.41868115]
[1734900291186,26.6231333,179.89,179.76,21.41868115]
[1734900291590,2.7828,179.88,179.84,2.7833]
[1734900291791,6.95976486,179.88,179.84,2.7833]
[1734900292490,2.783,179.87,179.84,2.7833]
[1734900292695,2.783,179.87,179.83,2.7834]
[1734900293689,2.7831,179.86,179.83,2.7834]
[1734900294392,2.7832,179.85,179.78,2.7842]
[1734900294595,2.7832,179.85,179.75,13.3769767]
[1734900294892,3.3,179.84,179.75,13.3769767]
[1734900295089,2.7837,179.82,179.75,13.3769767]
[1734900295490,2.7836,179.83,179.79,2.7841]
[1734900295891,3.3,179.84,179.79,2.7841]
[1734900296086,3.3,179.84,179.68,111.9986359]
[1734900296087,13.3769767,179.81,179.7,21.87810659]
[1734900296690,2.7843,179.79,179.75,2.7848]
[1734900296896,6.0843,179.79,179.69,13.3769767]
[1734900297592,6.0843,179.79,179.75,2.7848]
[1734900297792,6.0843,179.79,179.69,13.3769767]
[1734900298091,2.7844,179.78,179.69,13.3769767]
[1734900298292,3.3,179.79,179.73,2.785]
[1734900299197,2.7846,179.77,179.73,2.785]
[1734900300598,6.0846,179.77,179.73,2.785]
[1734900300901,2.7847,179.76,179.72,2.7852]
[1734900301101,2.7847,179.76,179.67,3.3]
[1734900301397,3.3,179.77,179.66,13.3769767]
[1734900301599,6.0845,179.77,179.72,2.7852]
[1734900301998,3.3,179.77,179.66,13.3769767]
[1734900302194,2.7847,179.76,179.66,13.3769767]
[1734900302394,3.3,179.77,179.64,21.92722025]
[1734900302592,3.3,179.77,179.65,13.3769767]
[1734900303496,13.3769767,179.75,179.65,13.3769767]
[1734900304202,22.193603,179.75,179.62,125.41935386]
[1734900304398,13.3769767,179.75,179.62,125.41935386]
[1734900304699,2.7853,179.72,179.68,2.7858]
[1734900305297,2.7851,179.73,179.62,125.41935386]
[1734900305592,2.7851,179.73,179.69,2.7857]
[1734900305996,4.17846451,179.76,179.65,13.3769767]
[1734900306196,3.3,179.78,179.66,3.3]
[1734900306392,3.3,179.78,179.68,13.3769767]
[1734900306701,3.3,179.78,179.73,2.785]
[1734900307097,13.3769767,179.8,179.68,13.3769767]
[1734900307298,13.3769767,179.8,179.66,3.3]
[1734900307497,16.6769767,179.83,179.72,13.3769767]
[1734900307697,16.6769767,179.83,179.72,16.6769767]
[1734900308494,2.7838,179.82,179.72,16.6769767]
[1734900308799,25.47469767,179.83,179.72,16.6769767]
[1734900309001,2.7839,179.81,179.77,2.7844]
[1734900309200,16.6769767,179.83,179.72,16.6769767]
[1734900309604,19.4605767,179.83,179.72,16.6769767]
[1734900310101,6.0836,179.83,179.72,3.3]
[1734900310297,24.71592764,179.83,179.68,3.3]
[1734900310605,11.35485486,179.82,179.68,3.3]
[1734900310806,2.7844,179.78,179.73,2.785]
[1734900311006,6.0844,179.78,179.73,2.785]
[1734900311313,6.0844,179.78,179.74,2.7849]
[1734900311515,3.3,179.82,179.68,3.3]
[1734900311725,3.3,179.82,179.69,21.41592764]
[1734900311911,6.0837,179.82,179.69,21.41592764]
[1734900312540,6.0837,179.82,179.78,2.7842]
[1734900312834,4.17792478,179.84,179.73,3.3]
[1734900313129,3.3,179.86,179.73,3.3]
[1734900313331,23.42728653,179.89,179.75,21.41592764]
[1734900313332,2.783,179.87,179.75,21.41592764]
[1734900313634,2.783,179.87,179.83,2.7834]
[1734900315012,6.083,179.87,179.83,2.7834]
[1734900315212,3.3,179.87,179.75,21.41592764]
[1734900315410,3.3,179.87,179.84,2.7834]
[1734900317007,6.0829,179.87,179.84,2.7834]
[1734900317808,20.9462427,179.89,179.76,1.7378]
[1734900318007,3.3,179.93,179.78,24.71592764]
[1734900318202,0.89994307,179.92,179.78,24.71592764]
[1734900318627,3.68224307,179.92,179.78,24.71592764]
[1734900318806,0.89994307,179.91,179.78,24.71592764]
[1734900319109,24.71592764,179.94,179.78,24.71592764]
[1734900319309,0.8998734,179.93,179.78,24.71592764]
[1734900319537,14.76676748,179.93,179.78,24.71592764]
[1734900319842,2.7823,179.91,179.86,2.783]
[1734900320028,26.05129164,179.93,179.81,21.41592764]
[1734900320312,2.6395734,179.93,179.82,1.7378]
[1734900320507,2.6395734,179.93,179.84,21.41592764]
[1734900321105,2.6395734,179.93,179.91,2.7822]
[1734900321311,0.8998734,179.93,179.84,21.41592764]
[1734900321525,0.8998734,179.93,179.84,21.69272764]
[1734900321723,0.8998734,179.93,179.86,2.783]
[1734900322023,0.8998734,179.93,179.84,21.69272764]
[1734900322234,0.8998734,179.93,179.92,2.7822]
[1734900324925,0.8998734,179.93,179.91,2.7823]
[1734900325824,0.8998734,179.93,179.92,2.7822]
[1734900328530,2.7815,179.97,179.92,2.7822]
[1734900329426,2.7816,179.96,179.92,2.7822]
[1734900329829,2.7816,179.96,179.89,1.6866]
[1734900330029,2.7819,179.94,179.85,3.3]
[1734900330323,3.3,179.96,179.85,3.3]
[1734900330528,3.3,179.96,179.93,2.7819]
[1734900331025,0.21355,180.02,179.93,3.3]
[1734900331226,61.95507387,180.13,180.0,21.41592764]
[1734900331529,19.12222135,180.12,180.01,1.6795]
[1734900331729,8.73988573,180.12,180.04,2.7802]
[1734900332130,2.7796,180.09,180.04,2.7802]
[1734900333125,3.5061,180.15,180.04,2.7802]
[1734900333324,2.7797,180.08,180.04,2.7802]
[1734900337026,2.7797,180.08,180.05,2.7801]
[1734900338231,2.7796,180.09,180.06,2.78]
[1734900338926,2.7796,180.09,180.05,2.7801]
[1734900342133,2.7797,180.08,180.04,2.7803]
[1734900342428,4.5147,180.08,180.04,2.7803]
[1734900347237,2.7802,180.05,180.01,2.7807]
[1734900347735,2.78,180.06,180.02,2.7805]
[1734900348337,3.97086612,180.07,180.01,2.7807]
[1734900348937,2.7802,180.05,180.01,2.7807]
[1734900350044,2.7804,180.04,180.01,2.7807]
[1734900350736,2.7806,180.02,179.99,2.7809]
[1734900353736,2.7809,180.0,179.96,2.7815]
[1734900354132,21.35724746,180.03,179.91,2.71308413]
[1734900354437,2.7815,179.97,179.91,2.71308413]
[1734900354739,4.9258,180.02,179.91,2.71308413]
[1734900354941,2.7818,179.95,179.91,2.7822]
[1734900355335,2.7822,179.92,179.88,2.7826]
[1734900355534,1.6969,179.94,179.86,21.92722025]
[1734900356443,1.6969,179.94,179.85,3.28]
[1734900356632,1.6969,179.94,179.83,1.717]
[1734900356836,23.05414746,179.94,179.81,25.20722025]
[1734900357042,23.05414746,179.94,179.83,2.7834]
[1734900357043,2.7831,179.87,179.83,2.7834]
[1734900357438,3.28,179.91,179.83,2.7834]
[1734900357739,2.7829,179.88,179.83,2.7834]
[1734900357942,3.28,179.91,179.83,2.7834]
[1734900358341,24.63724746,179.91,179.81,2.7838]
[1734900358752,24.63724746,179.91,179.78,4.9572]